fUSD/lending_fUSD_20260602
["ID","MTS","AMOUNT","RATE_DAILY","PERIOD"]
[423766403,1780406110000,161.0,0.00028433,120]
[423766406,1780406161000,200.0,0.00022,120]
[423766407,1780406360000,409.74376576,8e-05,2]
[423766408,1780406376000,-151.0,0.00010487,7]
[423766409,1780406405000,206.15082982,0.00023208,120]
[423766411,1780406532000,2601.0,0.000145,120]
[423766413,1780406543000,6152.12655983,0.0002,120]
[423766414,1780406544000,2138.0789092,0.0002,120]
[423766415,1780406547000,577.09437619,0.00017,120]
[423766416,1780406548000,301.82903756,0.00027,120]
[423766417,1780406550000,193.27423658,0.00028,120]
[423766418,1780406593000,500.0,0.00028766,120]
[423766419,1780406630000,555.0,0.00028767,120]
[423766420,1780406720000,161.0,0.00022847,120]
[423766421,1780406722000,161.0,0.00023989,120]
[423766422,1780406723000,161.0,0.00025188,120]
[423766427,1780406941000,2000.0,0.00028766,120]
[423766465,1780407032000,-500.0,0.00010694,2]
[423766460,1780407032000,-500.0,0.00010694,2]
[423766463,1780407032000,-500.0,0.00010694,2]
[423766464,1780407032000,-500.0,0.00010694,2]
[423766466,1780407032000,-500.0,0.00010694,2]
[423766456,1780407032000,-500.0,0.00010694,2]
[423766449,1780407032000,-500.0,0.00010694,2]
[423766457,1780407032000,-500.0,0.00010694,2]
[423766459,1780407032000,-500.0,0.00010694,2]
[423766455,1780407032000,-500.0,0.00010694,2]
[423766453,1780407032000,-500.0,0.00010694,2]
[423766450,1780407032000,-500.0,0.00010694,2]
[423766452,1780407032000,-500.0,0.00010694,2]
[423766447,1780407032000,-500.0,0.00010694,2]
[423766461,1780407032000,-500.0,0.00010694,2]
[423766458,1780407032000,-500.0,0.00010694,2]
[423766451,1780407032000,-500.0,0.00010694,2]
[423766448,1780407032000,-500.0,0.00010694,2]
[423766433,1780407032000,-1193.360925,0.00010541,2]
[423766434,1780407032000,-168.66784861,0.00010594,2]
[423766435,1780407032000,-204.05557396,0.00010594,2]
[423766436,1780407032000,-250.0,0.00010617,2]
[423766443,1780407032000,-500.0,0.00010694,2]
[423766462,1780407032000,-500.0,0.00010694,2]
[423766454,1780407032000,-500.0,0.00010694,2]
[423766438,1780407032000,-188.24375729,0.00010694,2]
[423766441,1780407032000,-500.0,0.00010694,2]
[423766444,1780407032000,-151.00653799,0.00010694,2]
[423766442,1780407032000,-500.0,0.00010694,2]
[423766439,1780407032000,-500.0,0.00010694,2]
[423766445,1780407032000,-348.99346201,0.00010694,2]
[423766446,1780407032000,-500.0,0.00010694,2]
[423766440,1780407032000,-171.78037908,0.00010694,2]
[423766467,1780407032000,-500.0,0.00010694,2]
[423766437,1780407032000,-500.0,0.00010694,2]
[423766469,1780407032000,-500.0,0.00010694,2]
[423766482,1780407032000,-500.0,0.00010694,2]
[423766494,1780407032000,-500.0,0.00010694,2]
[423766501,1780407032000,-189.69740348,0.00010696,7]
[423766500,1780407032000,-236.17347081,0.00010696,7]
[423766502,1780407032000,-150.0,0.00010699,2]
[423766493,1780407032000,-500.0,0.00010694,2]
[423766489,1780407032000,-500.0,0.00010694,2]
[423766495,1780407032000,-500.0,0.00010694,2]
[423766496,1780407032000,-331.7706301,0.00010694,2]
[423766497,1780407032000,-1200.0,0.00010696,2]
[423766498,1780407032000,-1200.0,0.00010696,2]
[423766504,1780407032000,-17358.18507363,0.000107,2]
[423766505,1780407032000,-1193.53754806,0.000107,2]
[423766478,1780407032000,-450.0,0.00010694,2]
[423766503,1780407032000,-271.60799296,0.000107,2]
[423766488,1780407032000,-500.0,0.00010694,2]
[423766499,1780407032000,-300.0,0.00010696,2]
[423766484,1780407032000,-500.0,0.00010694,2]
[423766486,1780407032000,-500.0,0.00010694,2]
[423766472,1780407032000,-500.0,0.00010694,2]
[423766479,1780407032000,-500.0,0.00010694,2]
[423766471,1780407032000,-500.0,0.00010694,2]
[423766474,1780407032000,-539.99257227,0.00010694,2]
[423766477,1780407032000,-500.0,0.00010694,2]
[423766476,1780407032000,-500.0,0.00010694,2]
[423766473,1780407032000,-500.0,0.00010694,2]
[423766481,1780407032000,-500.0,0.00010694,2]
[423766480,1780407032000,-500.0,0.00010694,2]
[423766483,1780407032000,-500.0,0.00010694,2]
[423766492,1780407032000,-500.0,0.00010694,2]
[423766490,1780407032000,-500.0,0.00010694,2]
[423766485,1780407032000,-500.0,0.00010694,2]
[423766475,1780407032000,-500.0,0.00010694,2]
[423766491,1780407032000,-500.0,0.00010694,2]
[423766535,1780407038000,-1384.93,0.00011585,2]
[423766527,1780407038000,-2000.0,0.00011104,2]
[423766532,1780407038000,-150.09,0.00011344,2]
[423766529,1780407038000,-150.09,0.00011259,2]
[423766534,1780407038000,-150.09,0.00011513,2]
[423766536,1780407038000,-200.0,0.00011587,2]
[423766531,1780407038000,-152.21023307,0.00011332,2]
[423766530,1780407038000,-491.0,0.0001131,2]
[423766538,1780407038000,-879.47,0.00011592,2]
[423766533,1780407038000,-150.09,0.00011429,2]
[423766537,1780407038000,-2000.0,0.00011588,2]
[423766528,1780407038000,-670.06,0.00011195,2]
[423766519,1780407038000,-344.8,0.000107,2]
[423766524,1780407038000,-292.94514206,0.00010978,7]
[423766525,1780407038000,-524.17,0.00011012,2]
[423766526,1780407038000,-1000.0,0.00011045,2]
[423766522,1780407038000,-500.0,0.00010959,2]
[423766520,1780407038000,-21005.99256436,0.000107,2]
[423766521,1780407038000,-175.09468095,0.0001091,2]
[423766517,1780407038000,-866.12932493,0.000107,2]
[423766515,1780407038000,-1654.78096089,0.000107,2]
[423766518,1780407038000,-9530.52670384,0.000107,2]
[423766516,1780407038000,-1772.81478854,0.000107,2]
[423766540,1780407038000,-5000.0,0.000116,2]
[423766523,1780407038000,-4042.24,0.00010959,2]
[423766543,1780407038000,-300.0,0.00011653,2]
[423766539,1780407038000,-150.09,0.00011598,2]
[423766542,1780407038000,-11094.21,0.00011627,2]
[423766541,1780407038000,-298.5232093,0.000116,2]
[423766568,1780407038000,-259.46973245,0.000125,2]
[423766569,1780407038000,-7280.30259556,0.0001253,2]
[423766567,1780407038000,-1384.93,0.00012453,2]
[423766566,1780407038000,-150.09,0.00012445,2]
[423766565,1780407038000,-150.09,0.0001236,2]
[423766561,1780407038000,-150.09,0.00012191,2]
[423766562,1780407038000,-150.09,0.00012275,2]
[423766564,1780407038000,-197.46,0.00012329,2]
[423766558,1780407038000,-1319.51,0.00012064,2]
[423766559,1780407038000,-150.09,0.00012106,2]
[423766560,1780407038000,-1384.93,0.00012164,2]
[423766554,1780407038000,-418.87,0.00011892,2]
[423766563,1780407038000,-150.0,0.0001228,2]
[423766557,1780407038000,-150.09,0.00012021,2]
[423766551,1780407038000,-1384.93,0.00011874,2]
[423766556,1780407038000,-164.79,0.00012013,2]
[423766545,1780407038000,-471.26,0.00011665,2]
[423766546,1780407038000,-150.09,0.00011683,2]
[423766547,1780407038000,-255.0,0.00011737,2]
[423766548,1780407038000,-1680.0,0.00011766,2]
[423766549,1780407038000,-150.09,0.00011767,2]
[423766552,1780407038000,-4433.24,0.00011875,2]
[423766550,1780407038000,-150.09,0.00011852,2]
[423766553,1780407038000,-837.02687569,0.00011883,2]
[423766555,1780407038000,-150.09,0.00011937,2]
[423766544,1780407038000,-250.0,0.00011653,2]
[423766603,1780407039000,-1546.0,0.00013078,2]
[423766621,1780407039000,-500.0,0.00013151,2]
[423766609,1780407039000,-1546.0,0.00013111,2]
[423766610,1780407039000,-1546.0,0.00013111,2]
[423766608,1780407039000,-1546.0,0.00013111,2]
[423766604,1780407039000,-1546.0,0.00013078,2]
[423766607,1780407039000,-1546.0,0.00013111,2]
[423766599,1780407039000,-1840.81597487,0.00013019,2]
[423766605,1780407039000,-1546.0,0.00013078,2]
[423766602,1780407039000,-1546.0,0.00013078,2]
[423766612,1780407039000,-1546.0,0.00013111,2]
[423766598,1780407039000,-867.9396,0.00013011,2]
[423766620,1780407039000,-342.72406063,0.00013151,2]
[423766624,1780407039000,-508.29052709,0.00013151,2]
[423766614,1780407039000,-215.67541492,0.00013123,2]
[423766619,1780407039000,-500.0,0.00013151,2]
[423766616,1780407039000,-1230.41692014,0.00013123,2]
[423766615,1780407039000,-160.0,0.00013123,2]
[423766617,1780407039000,-196.75034628,0.00013123,2]
[423766613,1780407039000,-1546.0,0.00013111,2]
[423766618,1780407039000,-500.0,0.00013151,2]
[423766622,1780407039000,-500.0,0.00013151,2]
[423766627,1780407039000,-500.0,0.00013151,2]
[423766629,1780407039000,-500.0,0.00013151,2]
[423766623,1780407039000,-500.0,0.00013151,2]
[423766600,1780407039000,-2000.0,0.00013036,2]
[423766625,1780407039000,-500.0,0.00013151,2]
[423766611,1780407039000,-1546.0,0.00013111,2]
[423766606,1780407039000,-1500.0,0.00013082,2]
[423766594,1780407039000,-4999.99,0.00012893,2]
[423766593,1780407039000,-3810.87,0.00012893,2]
[423766628,1780407039000,-500.0,0.00013151,2]
[423766570,1780407039000,-152.0,0.0001263,7]
[423766571,1780407039000,-374.306863,0.0001263,2]
[423766574,1780407039000,-179.445259,0.00012635,2]
[423766572,1780407039000,-209.28141,0.0001263,2]
[423766575,1780407039000,-10005.778759,0.00012635,2]
[423766582,1780407039000,-1384.93,0.00012743,2]
[423766579,1780407039000,-150.0,0.00012723,2]
[423766580,1780407039000,-150.0,0.00012723,2]
[423766583,1780407039000,-7280.30259547,0.00012793,2]
[423766576,1780407039000,-152.0,0.00012656,7]
[423766578,1780407039000,-150.0,0.00012723,2]
[423766573,1780407039000,-339.63594,0.0001263,2]
[423766577,1780407039000,-153.76160517,0.00012723,2]
[423766581,1780407039000,-150.0,0.00012723,2]
[423766585,1780407039000,-14212.816264,0.00012888,2]
[423766595,1780407039000,-9999.99,0.00012893,2]
[423766584,1780407039000,-433.0,0.00012871,2]
[423766597,1780407039000,-164.79,0.00013004,2]
[423766596,1780407039000,-2351.0,0.00012942,2]
[423766586,1780407039000,-162.35164,0.00012888,2]
[423766587,1780407039000,-150.99,0.00012893,2]
[423766591,1780407039000,-12748.26,0.00012893,2]
[423766590,1780407039000,-9999.99,0.00012893,2]
[423766589,1780407039000,-2857.14,0.00012893,2]
[423766588,1780407039000,-299.99,0.00012893,2]
[423766592,1780407039000,-228.48,0.00012893,2]
[423766601,1780407039000,-7280.30259547,0.00013057,2]
[423766630,1780407039000,-500.0,0.00013151,2]
[423766666,1780407039000,-1233.0,0.00013151,2]
[423766634,1780407039000,-150.0,0.00013151,2]
[423766665,1780407039000,-500.0,0.00013151,2]
[423766673,1780407039000,-1233.0,0.00013151,2]
[423766663,1780407039000,-500.0,0.00013151,2]
[423766674,1780407039000,-500.0,0.00013151,2]
[423766626,1780407039000,-500.0,0.00013151,2]
[423766667,1780407039000,-500.0,0.00013151,2]
[423766668,1780407039000,-150.0,0.00013151,2]
[423766671,1780407039000,-1233.0,0.00013151,2]
[423766669,1780407039000,-1233.0,0.00013151,2]
[423766670,1780407039000,-278.88036096,0.00013151,2]
[423766675,1780407039000,-1233.0,0.00013151,2]
[423766677,1780407039000,-1233.0,0.00013151,2]
[423766679,1780407039000,-1233.0,0.00013151,2]
[423766678,1780407039000,-500.0,0.00013151,2]
[423766680,1780407039000,-500.0,0.00013151,2]
[423766676,1780407039000,-500.0,0.00013151,2]
[423766686,1780407039000,-1233.0,0.00013151,2]
[423766687,1780407039000,-500.0,0.00013151,2]
[423766681,1780407039000,-1233.0,0.00013151,2]
[423766685,1780407039000,-500.0,0.00013151,2]
[423766683,1780407039000,-1233.0,0.00013151,2]
[423766682,1780407039000,-500.0,0.00013151,2]
[423766684,1780407039000,-500.0,0.00013151,2]
[423766689,1780407039000,-500.0,0.00013151,2]
[423766688,1780407039000,-500.0,0.00013151,2]
[423766690,1780407039000,-500.0,0.00013151,2]
[423766691,1780407039000,-500.0,0.00013151,2]
[423766664,1780407039000,-1233.0,0.00013151,2]
[423766662,1780407039000,-1233.0,0.00013151,2]
[423766672,1780407039000,-500.0,0.00013151,2]
[423766655,1780407039000,-500.0,0.00013151,2]
[423766631,1780407039000,-500.0,0.00013151,2]
[423766632,1780407039000,-500.0,0.00013151,2]
[423766635,1780407039000,-500.0,0.00013151,2]
[423766633,1780407039000,-500.0,0.00013151,2]
[423766637,1780407039000,-500.0,0.00013151,2]
[423766647,1780407039000,-500.0,0.00013151,2]
[423766636,1780407039000,-541.41561873,0.00013151,2]
[423766657,1780407039000,-500.0,0.00013151,2]
[423766639,1780407039000,-338.44666707,0.00013151,2]
[423766641,1780407039000,-500.0,0.00013151,2]
[423766646,1780407039000,-500.0,0.00013151,2]
[423766642,1780407039000,-543.74075382,0.00013151,2]
[423766644,1780407039000,-500.0,0.00013151,2]
[423766645,1780407039000,-500.0,0.00013151,2]
[423766638,1780407039000,-194.79440243,0.00013151,2]
[423766643,1780407039000,-500.0,0.00013151,2]
[423766656,1780407039000,-1233.0,0.00013151,2]
[423766640,1780407039000,-500.0,0.00013151,2]
[423766654,1780407039000,-1233.0,0.00013151,2]
[423766658,1780407039000,-1233.0,0.00013151,2]
[423766660,1780407039000,-1233.0,0.00013151,2]
[423766651,1780407039000,-500.0,0.00013151,2]
[423766661,1780407039000,-500.0,0.00013151,2]
[423766652,1780407039000,-386.84986946,0.00013151,2]
[423766650,1780407039000,-500.0,0.00013151,2]
[423766659,1780407039000,-500.0,0.00013151,2]
[423766649,1780407039000,-500.0,0.00013151,2]
[423766648,1780407039000,-500.0,0.00013151,2]
[423766653,1780407039000,-500.0,0.00013151,2]
[423766703,1780407040000,-360.12141826,0.00013151,2]
[423766696,1780407040000,-500.0,0.00013151,2]
[423766702,1780407040000,-500.0,0.00013151,2]
[423766706,1780407040000,-500.0,0.00013151,2]
[423766705,1780407040000,-1233.0,0.00013151,2]
[423766701,1780407040000,-500.0,0.00013151,2]
[423766695,1780407040000,-500.0,0.00013151,2]
[423766700,1780407040000,-500.0,0.00013151,2]
[423766693,1780407040000,-500.0,0.00013151,2]
[423766692,1780407040000,-1233.0,0.00013151,2]
[423766698,1780407040000,-306.6186348,0.00013151,2]
[423766694,1780407040000,-537.33389924,0.00013151,2]
[423766699,1780407040000,-1233.0,0.00013151,2]
[423766713,1780407040000,-1233.0,0.00013151,2]
[423766697,1780407040000,-500.0,0.00013151,2]
[423766707,1780407040000,-500.0,0.00013151,2]
[423766724,1780407040000,-305.13958142,0.00013151,2]
[423766710,1780407040000,-500.0,0.00013151,2]
[423766722,1780407040000,-500.0,0.00013151,2]
[423766719,1780407040000,-500.0,0.00013151,2]
[423766723,1780407040000,-500.0,0.00013151,2]
[423766720,1780407040000,-260.50307483,0.00013151,2]
[423766721,1780407040000,-1233.0,0.00013151,2]
[423766718,1780407040000,-500.0,0.00013151,2]
[423766717,1780407040000,-500.0,0.00013151,2]
[423766704,1780407040000,-500.0,0.00013151,2]
[423766716,1780407040000,-500.0,0.00013151,2]
[423766715,1780407040000,-500.0,0.00013151,2]
[423766711,1780407040000,-500.0,0.00013151,2]
[423766709,1780407040000,-500.0,0.00013151,2]
[423766712,1780407040000,-500.0,0.00013151,2]
[423766708,1780407040000,-500.0,0.00013151,2]
[423766714,1780407040000,-500.0,0.00013151,2]
[423766751,1780407041000,-500.0,0.00013151,2]
[423766755,1780407041000,-500.0,0.00013151,2]
[423766753,1780407041000,-500.0,0.00013151,2]
[423766758,1780407041000,-500.0,0.00013151,2]
[423766763,1780407041000,-7280.30259547,0.0001332,2]
[423766760,1780407041000,-150.0,0.00013151,2]
[423766762,1780407041000,-1282.29,0.000133,2]
[423766761,1780407041000,-4790.45210547,0.00013235,2]
[423766764,1780407041000,-164.11,0.00013335,2]
[423766759,1780407041000,-503.86765878,0.00013151,2]
[423766757,1780407041000,-503.59944546,0.00013151,2]
[423766748,1780407041000,-1233.0,0.00013151,2]
[423766752,1780407041000,-500.0,0.00013151,2]
[423766765,1780407041000,-500.0,0.00013356,2]
[423766747,1780407041000,-324.37069545,0.00013151,2]
[423766749,1780407041000,-1252.26944877,0.00013151,2]
[423766746,1780407041000,-164.0227259,0.00013151,2]
[423766745,1780407041000,-335.9772741,0.00013151,2]
[423766744,1780407041000,-500.0,0.00013151,2]
[423766743,1780407041000,-571.54591637,0.00013151,2]
[423766740,1780407041000,-500.0,0.00013151,2]
[423766742,1780407041000,-661.45408363,0.00013151,2]
[423766741,1780407041000,-500.0,0.00013151,2]
[423766739,1780407041000,-194.86041858,0.00013151,2]
[423766750,1780407041000,-500.0,0.00013151,2]
[423766766,1780407041000,-2213.32341035,0.00013425,2]
[423766756,1780407041000,-500.0,0.00013151,2]
[423766769,1780407041000,-2274.60278587,0.00013425,2]
[423766770,1780407041000,-1000.0,0.0001347,2]
[423766795,1780407041000,-3244.52868969,0.00013598,2]
[423766789,1780407041000,-3237.43197602,0.00013583,2]
[423766793,1780407041000,-22612.44351119,0.00013598,2]
[423766790,1780407041000,-2206.12181778,0.00013583,2]
[423766792,1780407041000,-191.65005977,0.00013583,2]
[423766791,1780407041000,-500.0,0.00013583,2]
[423766786,1780407041000,-2574.97,0.00013569,2]
[423766785,1780407041000,-190.588646,0.00013532,2]
[423766787,1780407041000,-1319.51,0.00013572,2]
[423766784,1780407041000,-253.47364093,0.00013521,2]
[423766783,1780407041000,-12526.11700207,0.00013514,2]
[423766782,1780407041000,-534.25,0.0001349,2]
[423766781,1780407041000,-150.0,0.0001349,2]
[423766754,1780407041000,-500.0,0.00013151,2]
[423766779,1780407041000,-1000.0,0.0001349,2]
[423766778,1780407041000,-4790.4521054,0.00013473,2]
[423766780,1780407041000,-975.0,0.0001349,2]
[423766777,1780407041000,-360.0,0.00013472,2]
[423766774,1780407041000,-949.99,0.0001347,2]
[423766788,1780407041000,-1145.0987419,0.00013583,2]
[423766776,1780407041000,-1282.21,0.0001347,2]
[423766768,1780407041000,-293.6013759,0.00013425,2]
[423766767,1780407041000,-278.253208,0.00013425,2]
[423766771,1780407041000,-1000.0,0.0001347,2]
[423766775,1780407041000,-150.0,0.0001347,2]
[423766773,1780407041000,-1000.0,0.0001347,2]
[423766772,1780407041000,-1000.0,0.0001347,2]
[423766817,1780407043000,-1065.731556,0.00013598,2]
[423766816,1780407043000,-500.0,0.00013082,2]
[423766818,1780407043000,-9577.93029181,0.00013598,2]
[423766830,1780407044000,-445.83976366,0.00013598,2]
[423766828,1780407044000,-275.82361056,0.00013598,2]
[423766825,1780407044000,-2422.47045607,0.00013598,2]
[423766866,1780407046000,-4429.93324602,0.00013598,2]
[423766873,1780407196000,567.355194,0.00028766,120]
[423766874,1780407226000,160.0,0.0002,120]
[423766875,1780407240000,151.0,0.00028,120]
[423766876,1780407256000,151.0,0.00028,120]
[423766877,1780407266000,151.0,0.00028,120]
[423766878,1780407313000,151.0,0.00028,120]
[423766879,1780407324000,151.0,0.00028,120]
[423766880,1780407353000,-1200.0,0.00010613,2]
[423766881,1780407382000,500.0,0.00028767,120]
[423766882,1780407390000,2000.0,0.00028767,120]
[423766883,1780407408000,-4.489e-05,0.00010613,2]
[423766885,1780407462000,-4.489e-05,0.00010612,2]
[423766886,1780407462000,151.0,0.00028,120]
[423766887,1780407481000,151.0,0.00028,120]
[423766888,1780407491000,151.0,0.00028,120]
[423766889,1780407500000,151.0,0.00028,120]
[423766890,1780407508000,151.0,0.00028,120]
[423766891,1780407517000,151.0,0.00028,120]
[423766892,1780407521000,622.0,0.00028,120]
[423766893,1780407527000,151.0,0.00028,120]
[423766895,1780407538000,5700.0,0.00028767,120]
[423766894,1780407538000,151.0,0.00028,120]
[423766896,1780407549000,151.0,0.00028,120]
[423766897,1780407551000,2463.38,0.00028767,120]
[423766898,1780407557000,151.0,0.00028,120]
[423766899,1780407571000,151.0,0.00028,120]
[423766900,1780407580000,151.0,0.00028,120]
[423766901,1780407596000,151.0,0.00028,120]
[423766902,1780407617000,151.0,0.00028,120]
[423766905,1780407647000,1724.14,0.00028767,120]
[423766903,1780407647000,2073.98570239,0.0002876,120]
[423766904,1780407647000,151.0,0.00028,120]
[423766906,1780407661000,151.0,0.00028,120]
[423766907,1780407713000,2124.51,0.00028767,120]
[423766908,1780407717000,151.0,0.00028,120]
[423766909,1780407727000,151.0,0.00028,120]
[423766910,1780407736000,151.0,0.00028,120]
[423766911,1780407745000,151.0,0.00028,120]
[423766912,1780407755000,151.0,0.00028,120]
[423766913,1780407766000,151.0,0.00028,120]
[423766914,1780407774000,151.0,0.00028,120]
[423766915,1780407825000,151.0,0.00028,120]
[423766916,1780407833000,151.0,0.00028,120]
[423766917,1780407852000,151.0,0.00028,120]
[423766918,1780407909000,151.0,0.00028,120]
[423767063,1780408073000,300.0,0.00028,120]
[423767066,1780408141000,2000.0,0.00028766,120]
[423767069,1780408142000,150.09,0.00010444,2]
[423767068,1780408142000,150.09,0.00010367,2]
[423767067,1780408142000,150.09,0.0001029,2]
[423767070,1780408170000,1193.0,0.00028767,120]
[423767087,1780408232000,-293.40855188,0.00010608,2]
[423767084,1780408232000,-150.09,0.00010599,2]
[423767085,1780408232000,-163.58,0.00010608,2]
[423767083,1780408232000,-150.09,0.00010522,2]
[423767086,1780408232000,-6.59144812,0.00010608,2]
[423767088,1780408232000,-633.68949648,0.00010608,2]
[423767098,1780408238000,-250.0,0.00010609,2]
[423767100,1780408238000,-10.54829557,0.00010647,2]
[423767099,1780408238000,-175.09468095,0.00010613,2]
[423767097,1780408238000,-566.31050352,0.00010608,2]
[423767102,1780408241000,-470.24626536,0.00010647,2]
[423767101,1780408241000,-489.45170443,0.00010647,2]
[423767103,1780408241000,-230.80215684,0.00010647,2]
[423767183,1780408241000,-239.45282241,0.00010648,2]
[423767179,1780408241000,-9.69926348,0.00010647,2]
[423767181,1780408241000,-164.41991411,0.00010647,2]
[423767104,1780408241000,-187.11987337,0.00010647,2]
[423767281,1780408243000,-500.0,0.00010607,2]
[423767286,1780408243000,-598.99925723,0.00010607,2]
[423767284,1780408243000,-500.0,0.00010607,2]
[423767287,1780408243000,-59.07038689,0.00010648,2]
[423767283,1780408243000,-500.0,0.00010607,2]
[423767289,1780408243000,-200.0,0.00010687,2]
[423767285,1780408243000,-500.0,0.00010607,2]
[423767282,1780408243000,-500.0,0.00010607,2]
[423767290,1780408243000,-160.0,0.00010707,2]
[423767292,1780408243000,-196.75034628,0.00010741,2]
[423767291,1780408243000,-524.17,0.00010712,2]
[423767294,1780408243000,-150.09,0.00010754,2]
[423767293,1780408243000,-215.67541492,0.0001075,2]
[423767288,1780408243000,-150.09,0.00010676,2]
[423767318,1780408244000,-1000.0,0.00011261,2]
[423767307,1780408244000,-1313.46387498,0.00010956,2]
[423767304,1780408244000,-678.10754254,0.00010941,2]
[423767300,1780408244000,-209.5884254,0.00010885,2]
[423767299,1780408244000,-403.0,0.00010877,2]
[423767295,1780408244000,-150.09,0.00010831,2]
[423767297,1780408244000,-1421.26,0.00010871,2]
[423767308,1780408244000,-150.0,0.00010959,2]
[423767298,1780408244000,-989.24777825,0.00010874,2]
[423767296,1780408244000,-851.56819662,0.00010866,2]
[423767302,1780408244000,-150.09,0.00010909,2]
[423767303,1780408244000,-164.11,0.00010928,2]
[423767301,1780408244000,-209.2815746,0.00010885,2]
[423767317,1780408244000,-164.79,0.00011247,2]
[423767305,1780408244000,-113.60245746,0.00010941,2]
[423767309,1780408244000,-150.09,0.00010986,2]
[423767306,1780408244000,-9780.74612502,0.00010956,2]
[423767323,1780408244000,-4074.31,0.00011281,2]
[423767324,1780408244000,-1310.34448532,0.00011281,2]
[423767321,1780408244000,-299.99,0.00011281,2]
[423767320,1780408244000,-228.48,0.00011281,2]
[423767322,1780408244000,-150.99,0.00011281,2]
[423767319,1780408244000,-2000.0,0.00011277,2]
[423767313,1780408244000,-1421.26,0.00011143,2]
[423767311,1780408244000,-292.94514206,0.00011129,7]
[423767312,1780408244000,-150.09,0.00011141,2]
[423767310,1780408244000,-150.09,0.00011063,2]
[423767315,1780408244000,-150.09,0.00011218,2]
[423767314,1780408244000,-193.0,0.00011154,2]
[423767316,1780408244000,-4042.24,0.00011232,2]
[423767364,1780408246000,-1298.47656597,0.00011281,2]
[423767365,1780408246000,-7391.16894871,0.00011281,2]
[423767366,1780408246000,-4654.72675267,0.00011281,2]
[423767370,1780408246000,-1388.66789075,0.00011281,2]
[423767368,1780408246000,-2857.14,0.00011281,2]
[423767369,1780408246000,-24999.99,0.00011281,2]
[423767367,1780408246000,-5345.26324733,0.00011281,2]
[423767389,1780408606000,904.0206326,0.00028767,120]
[423767392,1780408820000,502.4,0.00028767,120]
[423767408,1780408976000,-33.37,0.00010655,2]
[423767407,1780408976000,-966.63,0.00010646,2]
[423767409,1780408978000,-140.86,0.00010655,2]
[423767411,1780408979000,-329.17238575,0.0001069,2]
[423767412,1780408979000,-64.87367438,0.0001069,2]
[423767410,1780408979000,-465.09393987,0.0001069,2]
[423767414,1780408979000,-344.3332508,0.0001069,2]
[423767413,1780408979000,-96.6878354,0.0001069,2]
[423767415,1780408979000,-558.9789138,0.00010691,2]
[423767416,1780408980000,-1000.0,0.00010691,2]
[423767417,1780408981000,-1000.0,0.00010691,2]
[423767419,1780408982000,-1000.0,0.00010691,2]
[423767418,1780408982000,-1000.0,0.00010691,2]
[423767420,1780408983000,-1000.0,0.00010691,2]
[423767421,1780408984000,-1000.0,0.00010691,2]
[423767423,1780408985000,-1000.0,0.00010691,2]
[423767422,1780408985000,-1000.0,0.00010691,2]
[423767425,1780408986000,-1000.0,0.00010691,2]
[423767424,1780408986000,-1000.0,0.00010691,2]